bitfinex-derivatives/quotes_ETHF0:USTF0_20250612
["timestamp","ask_amount","ask_price","bid_price","bid_amount"]
[1749692842906,3.2078,2763.0,2762.9,0.72367]
[1749692844408,3.2078,2763.0,2762.8,0.6336]
[1749692844610,3.2078,2763.0,2762.8,1.35729]
[1749692844818,3.2078,2763.0,2762.8,0.7237]
[1749692845005,3.2078,2763.0,2762.7,0.6492]
[1749692845210,3.2078,2763.0,2762.8,0.72368]
[1749692845512,3.2078,2763.0,2762.9,0.72367]
[1749692845711,4.65559162,2763.0,2762.9,0.72367]
[1749692845912,4.65559162,2763.0,2762.8,0.72368]
[1749692846111,3.2078,2763.0,2762.8,0.72368]
[1749692846419,3.93145,2763.0,2762.7,1.928]
[1749692846718,3.2078,2763.0,2762.9,0.72367]
[1749692846906,4.65556519,2763.0,2762.9,0.72367]
[1749692847112,4.65556519,2763.0,2762.7,1.928]
[1749692847113,5.37922519,2763.0,2762.8,0.72368]
[1749692847313,1.44776519,2762.9,2762.8,0.72368]
[1749692848514,1.44776519,2762.9,2762.7,1.928]
[1749692848515,1.44776519,2762.9,2762.4,0.6179]
[1749692848821,3.2078,2762.6,2762.2,17.8006]
[1749692849020,3.2078,2762.6,2762.5,0.72378]
[1749692849318,4.65575983,2762.6,2762.5,0.72378]
[1749692850014,0.72379,2762.5,2762.2,0.72386]
[1749692850218,3.2078,2762.3,2762.2,0.72386]
[1749692850421,4.65575983,2762.3,2762.2,0.72386]
[1749692850821,1.44795983,2762.3,2762.2,5.36786]
[1749692851118,0.00542084,2762.7,2762.6,0.72375]
[1749692851319,0.00542084,2762.7,2762.6,22.55575]
[1749692853621,3.2078,2763.2,2763.0,0.72365]
[1749692855622,3.93141,2763.2,2763.0,0.6442]
[1749692856018,3.2078,2763.2,2763.0,1.36785]
[1749692856318,3.2078,2763.2,2763.0,0.6442]
[1749692856518,3.2078,2763.2,2763.0,1.36785]
[1749692857129,0.8323,2763.1,2763.0,1.36785]
[1749692857624,0.8323,2763.1,2763.0,0.72365]
[1749692857824,1.55593,2763.1,2762.9,17.90866]
[1749692858820,0.8323,2763.1,2763.0,0.72365]
[1749692859026,0.2895,2763.1,2763.0,0.72365]
[1749692859522,2.42780877,2763.1,2763.0,0.72365]
[1749692860017,0.2895,2763.1,2763.0,0.72365]
[1749692860622,2.42780877,2763.1,2763.0,1.90345]
[1749692861320,2.42780877,2763.1,2763.0,0.72365]
[1749692861726,2.42780877,2763.1,2763.0,1.97515]
[1749692862026,0.2895,2763.1,2763.0,1.97515]
[1749692862930,1.73720782,2763.1,2763.0,1.97515]
[1749692863131,1.73720782,2763.1,2763.0,1.2515]
[1749692863324,1.73720782,2763.1,2763.0,1.97515]
[1749692864532,3.87551659,2763.1,2763.0,1.97515]
[1749692864931,1.73720782,2763.1,2763.0,1.97515]
[1749692865130,1.73720782,2763.1,2762.8,0.00542084]
[1749692865334,1.44770782,2763.0,2762.9,0.72366]
[1749692865835,1.44770782,2763.0,2762.9,7.02316]
[1749692869542,1.44770782,2763.0,2762.9,10.23096]
[1749692869741,1.44770782,2763.0,2762.9,7.02316]
[1749692869944,0.2895,2763.1,2763.0,0.72365]
[1749692870239,0.2895,2763.1,2763.0,6.55455]
[1749692870442,0.2895,2763.1,2763.0,11.55455]
[1749692872843,0.5428,2763.2,2763.1,0.72362]
[1749692873041,0.5428,2763.2,2763.1,1.31822]
[1749692873240,0.5428,2763.2,2763.1,1.93992]
[1749692874341,0.5428,2763.2,2763.1,6.93992]
[1749692874841,0.00542084,2763.3,2763.2,0.7236]
[1749692875043,8.4e-07,2763.3,2763.2,22.3518]
[1749692875237,8.4e-07,2763.3,2763.2,27.3518]
[1749692876142,8.4e-07,2763.3,2763.2,3.9314]
[1749692876343,8.4e-07,2763.3,2763.2,25.7494]
[1749692876543,8.4e-07,2763.3,2763.2,23.7712]
[1749692877143,8.4e-07,2763.3,2763.2,26.979]
[1749692878336,8.4e-07,2763.3,2763.2,31.979]
[1749692878538,3.2078,2764.0,2763.9,0.72341]
[1749692878845,3.2078,2764.0,2763.9,17.89541]
[1749692879041,1.2379,2764.2,2764.1,0.72336]
[1749692879344,2.13830877,2764.8,2763.9,17.172]
[1749692879537,0.00542084,2764.3,2764.2,0.72333]
[1749692879737,8.4e-07,2764.3,2764.2,27.52933]
[1749692880449,8.4e-07,2764.3,2764.2,22.52933]
[1749692880744,8.4e-07,2764.3,2764.2,23.13823]
[1749692882146,0.6386,2765.1,2764.2,31.03157]
[1749692882342,0.5892,2765.4,2765.3,0.72305]
[1749692882645,0.5892,2765.4,2765.3,17.89105]
[1749692883452,3.2078,2765.5,2765.4,0.72302]
[1749692883641,0.00542084,2765.6,2765.3,17.89104]
[1749692883642,0.72839084,2765.6,2765.3,17.89104]
[1749692883944,0.72839084,2765.6,2765.2,4.634]
[1749692883945,3.21322084,2765.6,2765.4,17.88701]
[1749692884148,0.00542084,2765.6,2765.5,0.72299]
[1749692886949,3.21322084,2765.6,2765.4,17.164]
[1749692887149,3.21322084,2765.6,2765.5,0.72299]
[1749692887349,4.47972084,2765.6,2765.5,0.72299]
[1749692888452,4.47972084,2765.6,2765.4,17.88701]
[1749692888647,9.47972084,2765.6,2765.3,17.88303]
[1749692888849,4.47972084,2765.6,2765.3,17.16]
[1749692889052,4.47972084,2765.6,2765.5,0.72299]
[1749692889253,5.92614937,2765.6,2765.5,0.72299]
[1749692889751,4.47972084,2765.6,2765.5,0.72299]
[1749692890249,3.21322084,2765.6,2765.4,0.72301]
[1749692890456,1.184,2765.5,2765.4,0.72301]
[1749692891452,3.21322084,2765.6,2765.3,17.16]
[1749692891652,1.1874,2765.4,2765.3,0.72305]
[1749692891856,1.1874,2765.4,2765.3,17.88005]
[1749692892147,1.1874,2765.4,2765.0,4.633]
[1749692892347,3.93088,2765.2,2765.1,17.157]
[1749692892547,5.3774878,2765.2,2765.1,17.157]
[1749692892753,4.6544078,2765.2,2765.1,17.157]
[1749692892952,4.6544078,2765.2,2765.0,4.633]
[1749692892953,5.3774778,2765.2,2765.0,4.633]
[1749692893155,0.72313,2765.0,2764.8,0.72317]
[1749692893355,5.11837,2764.9,2764.5,4.633]
[1749692893545,4.3952,2764.9,2764.8,0.72318]
[1749692893750,4.3952,2764.9,2764.6,17.155]
[1749692894049,4.3952,2764.9,2764.5,4.633]
[1749692894250,5.11837,2764.9,2764.7,17.8782]
[1749692894545,1.44683841,2764.8,2764.5,4.633]
[1749692894752,3.2078,2764.9,2764.6,17.155]
[1749692894953,1.2828,2765.1,2765.0,0.72313]
[1749692895143,2.72949507,2765.1,2764.6,17.155]
[1749692895344,3.2078,2764.9,2764.6,17.155]
[1749692895551,1.2426,2764.8,2764.7,0.7232]
[1749692896452,2.68931693,2764.8,2764.7,0.7232]
[1749692896756,1.44671693,2764.8,2764.7,0.7232]
[1749692896954,1.2828,2765.1,2765.0,0.72313]
[1749692897256,2.72946869,2765.1,2764.7,4.633]
[1749692897457,3.2078,2764.8,2764.6,17.154]
[1749692897751,1.1965,2764.7,2764.6,17.87721]
[1749692897958,1.1965,2764.7,2764.6,17.154]
[1749692898157,3.36658535,2764.7,2764.6,17.154]
[1749692898353,3.36654303,2764.7,2764.6,17.154]
[1749692898552,2.64334303,2764.7,2764.6,17.87723]
[1749692898860,2.64334303,2764.7,2764.6,17.87623]
[1749692899256,1.44684303,2764.7,2764.6,17.87623]
[1749692899454,1.2828,2765.1,2765.0,0.72313]
[1749692899652,2.7295294,2765.1,2765.0,0.72313]
[1749692899851,2.7295294,2765.1,2764.8,4.633]
[1749692900051,1.4467294,2765.0,2764.9,0.72314]
[1749692900856,1.4467294,2765.0,2764.7,0.72319]
[1749692901062,1.4467294,2764.9,2764.8,0.72316]
[1749692902360,5.3776894,2764.9,2764.7,0.72318]
[1749692902553,1.4467294,2764.8,2764.7,0.72318]
[1749692902749,1.4467294,2764.8,2764.5,4.633]
[1749692902957,1.4467294,2764.8,2764.7,17.8742]
[1749692903359,1.4467294,2764.8,2764.7,17.151]
[1749692903553,2.6504294,2764.8,2764.7,17.151]
[1749692903753,2.6504294,2764.8,2764.7,17.8742]
[1749692904158,1.4467294,2764.8,2764.7,17.8742]
[1749692905161,1.4467294,2764.8,2764.6,0.72322]
[1749692905458,1.44678495,2764.7,2764.6,0.72322]
[1749692905861,1.44678495,2764.7,2764.6,17.87322]
[1749692906456,1.44678495,2764.7,2764.4,5.2271]
[1749692906758,1.44678495,2764.6,2764.5,17.87324]
[1749692906957,2.07618495,2764.6,2764.5,0.72324]
[1749692907254,2.07618495,2764.6,2764.1,7.1442]
[1749692907456,3.2078,2764.4,2764.3,0.72328]
[1749692907657,4.65458495,2764.4,2764.3,0.72328]
[1749692908254,1.44678495,2764.4,2764.3,0.72328]
[1749692908450,1.44678495,2764.4,2764.3,17.87328]
[1749692911460,1.44680642,2764.6,2764.3,17.15]
[1749692911656,2.13830877,2765.0,2764.3,17.15]
[1749692911657,1.44680642,2764.5,2764.4,0.72328]
[1749692912055,3.2078,2765.0,2764.9,0.72315]
[1749692912262,3.2078,2765.0,2764.9,17.87115]
[1749692912766,3.2078,2765.0,2764.9,17.148]
[1749692913458,3.2078,2765.0,2764.9,17.87115]
[1749692914366,3.93093,2765.0,2764.9,17.148]
[1749692914559,3.93093,2765.0,2764.9,17.87115]
[1749692914560,3.2078,2765.0,2764.9,17.87115]
[1749692915762,4.57235,2765.3,2765.2,0.72307]
[1749692916158,3.8493,2765.3,2765.2,0.72307]
[1749692916763,3.2078,2765.3,2765.2,0.72307]
[1749692917066,3.2078,2765.3,2765.2,5.34707]
[1749692921770,3.2078,2765.3,2765.2,0.72307]
[1749692921968,3.2078,2765.3,2765.2,22.48807]
[1749692922769,3.93620084,2765.6,2765.2,4.624]
[1749692922962,3.21322084,2765.6,2765.2,4.624]
[1749692923264,0.72302,2765.4,2765.3,17.139]
[1749692924272,1.44650155,2765.4,2765.3,17.86205]
[1749692925376,2.16952155,2765.4,2765.3,17.139]
[1749692925569,4.04562155,2765.4,2765.3,17.139]
[1749692925767,3.32260155,2765.4,2765.3,17.86205]
[1749692925969,0.72306,2765.3,2765.2,17.137]
[1749692926275,6.01086155,2765.3,2765.2,17.86007]
[1749692926476,5.28780155,2765.3,2765.2,17.86007]
[1749692927167,5.28780155,2765.3,2765.2,0.72307]
[1749692927572,6.01085155,2765.3,2765.1,0.72308]
[1749692927774,2.16957155,2765.2,2765.1,0.72308]
[1749692927968,1.44650155,2765.2,2765.1,0.72308]
[1749692928787,0.72311,2765.1,2764.7,17.7865]
[1749692929074,3.2078,2764.9,2764.8,0.72318]
[1749692929273,1.44650155,2764.9,2764.8,0.72318]
[1749692929477,3.2078,2765.2,2764.8,1.1857]
[1749692929478,1.44668644,2765.1,2764.8,1.1857]
[1749692929677,1.44668644,2765.0,2764.9,0.72315]
[1749692930577,1.44668644,2765.0,2764.6,0.5992]
[1749692930779,3.2078,2765.2,2764.6,0.5992]
[1749692930780,4.65448644,2764.9,2764.8,0.72316]
[1749692931380,4.65448644,2764.9,2764.7,21.758]
[1749692931572,3.2078,2764.9,2764.8,0.72318]
[1749692931773,4.65459486,2764.9,2764.7,21.758]
[1749692931979,2.06389486,2764.8,2764.7,21.758]
[1749692932180,2.78707486,2764.8,2764.7,21.758]
[1749692932477,2.06389486,2764.8,2764.0,3.21322084]
[1749692932780,2.06389486,2764.8,2764.0,0.00542084]
[1749692932781,0.72336,2764.1,2764.0,0.00542084]
[1749692932975,2.17015486,2764.1,2764.0,0.00542084]
[1749692933279,2.80295486,2764.1,2764.0,0.00542084]
[1749692933480,0.72346,2763.8,2763.5,0.5903]
[1749692933682,1.44679486,2763.7,2763.5,0.5903]
[1749692933980,1.44679486,2763.7,2763.6,0.72349]
[1749692936278,1.44679486,2763.7,2763.4,0.00542084]
[1749692936474,3.93132,2763.5,2763.4,0.00542084]
[1749692936683,5.37811486,2763.5,2763.4,0.00542084]
[1749692936878,10.37811486,2763.5,2763.4,0.00542084]
[1749692937079,10.96641486,2763.5,2763.4,0.00542084]
[1749692937376,1.80893,2763.3,2762.2,4.624]
[1749692937574,1.80893,2763.3,2760.3,1.81089]
[1749692937575,3.2078,2762.0,2760.3,1.81089]
[1749692937788,3.2078,2760.8,2760.7,0.72425]
[1749692938075,3.2078,2760.8,2760.7,58.66025]
[1749692938274,3.2078,2761.5,2760.7,66.21624539]
[1749692938475,3.7961,2762.2,2761.4,0.72407]
[1749692938678,3.2078,2762.2,2761.9,0.72392]
[1749692938880,3.2078,2762.2,2761.7,3.2078]
[1749692939085,3.2078,2762.2,2761.9,0.72393]
[1749692939384,3.2078,2762.2,2762.0,17.136]
[1749692939578,3.2078,2762.2,2762.1,0.72389]
[1749692939778,3.2078,2762.2,2762.0,17.136]
[1749692940078,3.2078,2762.2,2762.1,0.72389]
[1749692940380,3.2078,2762.2,2762.0,17.136]
[1749692941082,0.00543104,2762.3,2762.0,17.8599]
[1749692941284,0.00543104,2762.3,2762.1,0.72389]
[1749692941485,0.00543104,2762.3,2762.2,0.72386]
[1749692942377,0.00543104,2762.3,2762.2,17.139]
[1749692942773,0.00543104,2762.3,2762.2,17.86286]
[1749692943581,0.00543104,2762.3,2762.2,18.47196]
[1749692944381,0.598,2763.1,2762.4,1.80953]
[1749692944585,0.598,2763.1,2762.5,1.2716]
[1749692944787,0.598,2763.1,2763.0,0.72365]
[1749692944983,2.04587766,2763.1,2762.5,1.2716]
[1749692945286,3.2078,2763.0,2762.5,1.2716]
[1749692945486,3.21323104,2763.0,2762.7,0.72373]
[1749692945686,3.21323104,2763.0,2762.8,0.7237]
[1749692945886,3.21323104,2763.0,2762.7,0.72371]
[1749692946281,3.21323104,2763.0,2762.8,0.7237]
[1749692946477,0.00543104,2763.0,2762.9,0.72368]
[1749692947980,0.00543104,2763.0,2762.9,22.48168]
[1749692948185,3.2078,2763.3,2763.2,0.7236]
[1749692949784,3.2078,2763.3,2763.1,0.72361]
[1749692950293,3.2078,2763.3,2763.0,1.2288]
[1749692950590,3.2078,2763.3,2763.1,0.72362]
[1749692950790,3.2078,2763.3,2763.1,0.72363]
[1749692951194,0.72356,2763.4,2763.2,0.7236]
[1749692951584,3.2078,2763.4,2763.0,1.95245]
[1749692951788,0.72363,2763.1,2763.0,1.2288]
[1749692951992,3.2078,2763.1,2762.7,5.34072]
[1749692952289,3.2078,2763.1,2762.4,7.8248]
[1749692952486,0.72372,2762.8,2762.6,0.72374]
[1749692953288,0.72373,2762.7,2762.5,0.72377]
[1749692953687,0.72373,2762.7,2762.6,0.72376]
[1749692954287,2.17172188,2762.7,2762.5,0.72376]
[1749692954488,1.183,2763.0,2762.6,0.72376]
[1749692954688,1.44799283,2762.9,2762.6,0.72376]
[1749692954885,0.72375,2762.7,2762.5,0.72378]
[1749692955583,0.72375,2762.7,2762.6,0.72376]
[1749692955788,0.72378,2762.5,2762.4,3.2078]
[1749692955994,2.171773,2762.5,2762.4,3.2078]
[1749692957387,1.447993,2762.5,2762.4,3.93161]
[1749692957587,1.44803342,2762.6,2762.4,3.2078]
[1749692957893,1.44803342,2762.5,2762.4,3.93159]
[1749692958294,2.17181342,2762.5,2762.4,3.2078]
[1749692958496,4.65583342,2762.5,2762.0,4.53389]
[1749692958796,0.72388,2762.2,2762.1,0.72388]
[1749692958980,2.17191342,2762.2,2762.1,0.72388]
[1749692959390,0.72389,2762.1,2762.0,3.81]
[1749692959585,0.72391,2762.0,2761.9,0.00543104]
[1749692959787,2.17194342,2762.0,2761.9,0.00543104]
[1749692959988,2.77624342,2762.0,2761.9,0.00543104]
[1749692960189,2.05233342,2762.0,2761.9,0.72937104]
[1749692960391,1.44803342,2762.0,2761.9,0.72937104]
[1749692961392,2.17194342,2762.0,2761.9,0.72937104]
[1749692961594,4.31548999,2762.0,2761.9,0.72937104]
[1749692961994,4.31548999,2762.0,2761.9,0.00543104]
[1749692962395,2.17194342,2762.0,2761.9,0.00543104]
[1749692962698,4.31926698,2762.0,2761.9,0.00543104]
[1749692963001,2.17194342,2762.0,2761.9,0.00543104]
[1749692963893,3.41704342,2762.0,2761.9,0.00543104]
[1749692964297,2.17194342,2762.0,2761.9,0.00543104]
[1749692964998,3.36064342,2762.0,2761.9,0.00543104]
[1749692966193,2.17194342,2762.0,2761.9,0.72937104]
[1749692966699,2.17194342,2762.0,2761.9,0.00543104]
[1749692967093,1.44803342,2762.0,2761.9,0.00543104]
[1749692967305,1.44803342,2762.0,2761.9,0.72937104]
[1749692967898,3.5995226,2762.0,2761.9,0.72937104]
[1749692968201,2.17194342,2762.0,2761.9,0.00543104]
[1749692968801,1.44803342,2762.0,2761.9,0.72937104]
[1749692968993,1.44803342,2762.0,2761.9,1.34847104]
[1749692969197,1.44803342,2762.0,2761.9,2.55017104]
[1749692969401,3.60049288,2762.0,2761.9,5.75797104]
[1749692969806,1.44803342,2762.0,2761.9,5.75797104]
[1749692974311,3.60049288,2762.0,2761.9,21.69427104]
[1749692974502,3.60049288,2762.0,2761.9,18.48647104]
[1749692974703,4.32440288,2762.0,2761.9,17.76253104]
[1749692975598,2.17194342,2762.0,2761.9,17.14243104]
[1749692975798,2.77254342,2762.0,2761.9,17.14243104]
[1749692976212,1.44803342,2762.0,2761.9,17.86637104]
[1749692976709,1.44803342,2762.0,2761.9,21.07417104]
[1749692976900,1.44803342,2762.0,2761.9,21.70607104]
[1749692977106,1.44803342,2762.0,2761.9,26.70607104]
[1749692978612,2.155634,2762.4,2762.3,0.72383]
[1749692978812,2.155634,2762.4,2762.3,22.47283]
[1749692979108,2.155634,2762.6,2762.5,0.72378]
[1749692980205,2.155634,2762.6,2762.5,17.135]
[1749692980400,2.15808895,2762.6,2762.5,17.135]
[1749692980608,0.72376,2762.6,2762.5,17.135]
[1749692980808,3.2078,2762.8,2762.4,4.613]
[1749692981008,0.72378,2762.5,2762.4,4.613]
[1749692981211,0.72378,2762.5,2762.4,21.747]
[1749692982113,2.76564442,2762.6,2762.4,21.747]
[1749692982411,0.6065,2762.6,2762.5,0.72378]
[1749692985008,0.6065,2762.6,2762.4,21.747]
[1749692985212,3.2078,2762.5,2762.1,4.613]
[1749692985412,0.6065,2762.6,2762.5,0.72378]
[1749692985913,3.2078,2762.8,2762.7,0.72373]
[1749692986309,3.2078,2762.8,2762.6,0.72374]
[1749692986818,3.2078,2762.8,2762.4,1.2815]
[1749692986819,3.2078,2762.8,2762.7,0.72373]
[1749692988814,3.2078,2762.8,2762.4,1.2815]
[1749692988815,0.72361,2763.2,2762.6,1.80938]
[1749692989116,5.15999,2763.3,2763.0,0.72365]
[1749692989316,5.15999,2763.3,2763.1,17.13]
[1749692990020,0.7236,2763.2,2763.1,17.13]
[1749692990517,2.10936966,2763.2,2763.1,17.13]
[1749692990816,2.10936966,2763.2,2763.1,17.85363]
[1749692990817,1.38576966,2763.2,2763.1,17.85363]
[1749692991118,2.10936966,2763.2,2763.1,17.13]
[1749692993818,2.10936966,2763.2,2763.1,17.85363]
[1749692994122,1.38576966,2763.2,2763.1,17.85363]
[1749692994715,3.93123,2763.9,2763.4,0.72355]
[1749692994921,0.72347,2763.8,2763.4,0.72355]
[1749692995121,3.2078,2763.9,2763.4,2.65055]
[1749692995613,0.72343,2763.9,2763.4,2.65055]
[1749692995822,0.72345,2763.8,2763.4,3.25855]
[1749692996022,0.72343,2763.9,2763.4,3.25855]
[1749692996214,0.72345,2763.8,2763.4,3.25855]
[1749692996718,3.2078,2763.9,2763.4,2.535]
[1749692996918,0.72351,2763.6,2763.4,3.25855]
[1749692997221,0.72351,2763.6,2763.4,2.535]
[1749692997421,0.72351,2763.6,2763.4,3.25855]
[1749692997623,0.72346,2763.8,2763.4,3.25855]
[1749692998515,1.2868,2764.1,2763.4,3.25855]
[1749692998710,0.72345,2763.8,2763.4,3.25855]
[1749692999121,0.72347,2763.7,2763.4,3.25855]
[1749692999425,3.09525,2764.1,2763.4,3.25855]
[1749692999615,0.72348,2763.7,2763.4,3.25855]
[1749692999818,0.72345,2763.8,2763.4,3.25855]
[1749693000121,3.09525,2764.1,2763.4,3.25855]
[1749693000122,0.72347,2763.7,2763.4,3.25855]
[1749693000322,0.72343,2763.9,2763.4,3.25855]
[1749693000522,0.72345,2763.8,2763.4,3.25855]
[1749693000921,3.93123,2763.9,2763.4,3.25855]
[1749693001221,0.72344,2763.8,2763.4,3.25855]
[1749693001424,0.72345,2763.8,2763.4,3.25855]
[1749693001819,3.2078,2763.9,2763.4,3.25855]
[1749693002019,4.4501,2764.2,2763.6,1.80874]
[1749693002221,3.2078,2764.5,2763.9,1.80855]
[1749693002416,0.72335,2764.2,2764.0,1.8931]
[1749693002620,0.72333,2764.3,2764.0,1.36028]
[1749693002820,3.93115,2764.2,2764.0,0.6369]
[1749693003519,3.2078,2764.2,2764.1,0.72336]
[1749693003723,0.72334,2764.2,2764.0,0.6369]
[1749693004022,0.606,2764.3,2764.1,0.72334]
[1749693004627,0.606,2764.3,2764.2,0.72334]
[1749693005519,0.00543104,2764.4,2764.3,0.72331]
[1749693005732,0.00543104,2764.4,2764.3,17.83831]
[1749693006319,0.5889,2765.0,2764.3,21.04611]
[1749693006523,3.2078,2765.1,2764.9,0.72314]
[1749693006722,3.2078,2765.1,2765.0,17.115]
[1749693006925,5.36500777,2765.1,2765.0,17.115]
[1749693007424,3.9309,2765.1,2765.0,17.115]
[1749693007625,5.36505078,2765.1,2765.0,17.115]
[1749693008027,3.9309,2765.1,2765.0,17.115]
[1749693008325,5.36485365,2765.1,2765.0,17.115]
[1749693008720,1.43395365,2765.1,2765.0,17.83813]
[1749693009031,0.0035969,2765.3,2765.2,0.72308]
[1749693009227,2.16049102,2765.3,2765.2,0.72308]
[1749693009523,0.72308,2765.2,2765.1,0.6346]
[1749693012834,1.43384412,2765.2,2765.1,1.3577]
[1749693013022,1.43384412,2765.2,2765.1,2.578]
[1749693013227,1.42582362,2765.2,2765.1,2.578]
[1749693013433,2.14890362,2765.2,2765.1,1.8549]
[1749693013725,1.42582362,2765.2,2764.9,3.2078]
[1749693013932,0.72315,2764.9,2764.8,21.706]
[1749693014127,3.2078,2765.0,2764.5,9.0344]
[1749693014327,3.2078,2765.0,2764.6,17.105]
[1749693014328,0.72321,2764.7,2764.6,17.105]
[1749693014534,0.5937,2765.1,2764.6,17.105]
[1749693014737,1.42567367,2765.0,2764.9,0.72315]
[1749693014942,0.0035969,2765.3,2765.2,0.72308]
[1749693015130,1.42939989,2765.3,2765.2,17.82808]
[1749693015330,1.42939989,2765.3,2765.2,19.05368]
[1749693015543,1.42919269,2765.3,2765.2,19.05368]
[1749693015933,1.42919269,2765.3,2765.2,19.66898]
[1749693016433,2.15224269,2765.3,2765.2,22.3193]
[1749693016732,1.42919269,2765.3,2765.2,23.04238]
[1749693018437,0.0035969,2765.3,2765.2,23.04238]
[1749693019038,1.42888181,2765.3,2765.2,22.42408]
[1749693019335,1.42888181,2765.3,2765.2,21.701]
[1749693019539,5.35973181,2765.3,2765.2,21.701]
[1749693019736,2.15193181,2765.3,2765.2,21.701]
[1749693020230,1.42888181,2765.3,2765.2,22.42408]
[1749693021634,1.42888181,2765.3,2765.1,0.5989]
[1749693021838,1.42528491,2765.2,2765.1,1.322]
[1749693022135,2.14836491,2765.2,2765.1,21.698]
[1749693022442,2.05628491,2765.2,2765.1,22.4211]
[1749693023345,1.42528491,2765.2,2765.1,22.4211]
[1749693026641,1.42528491,2765.2,2765.1,25.6289]
[1749693027040,1.42528491,2765.2,2765.1,22.4211]
[1749693027441,1.42528491,2765.2,2765.1,25.6289]
[1749693036345,2.15914442,2765.8,2765.7,0.72295]
[1749693036550,2.15914442,2766.0,2765.9,0.72289]
[1749693037249,1.2764,2766.2,2765.9,0.72289]
[1749693037451,1.99923,2766.2,2766.0,0.72286]
[1749693037649,4.4151,2766.1,2766.0,0.72286]
[1749693037847,1.2073,2766.1,2766.0,0.72286]
[1749693038254,1.2073,2766.1,2765.9,0.72288]
[1749693038456,1.2073,2766.1,2765.7,21.68443104]
[1749693038656,2.15940588,2765.9,2765.8,0.72292]
[1749693038954,2.15940588,2766.0,2765.9,0.72289]
[1749693040453,2.15940588,2766.1,2766.0,0.72287]
[1749693040658,0.624,2766.2,2766.1,0.72284]
[1749693040959,2.15940588,2766.4,2766.3,0.72279]
[1749693041552,2.15940588,2766.5,2766.4,0.72276]
[1749693041952,2.15940588,2766.5,2766.3,0.72277]
[1749693042151,2.15940588,2766.4,2766.3,0.72279]
[1749693043660,3.39350588,2766.6,2766.5,0.72274]
[1749693044158,2.15940588,2766.7,2766.6,0.72271]
[1749693044365,2.15940588,2766.8,2766.7,0.72268]
[1749693044564,1.228,2766.9,2766.8,0.72266]
[1749693045764,0.6057,2766.9,2766.8,0.72266]
[1749693045960,2.78210588,2767.3,2766.8,3.2078]
[1749693046166,1.2375,2767.3,2767.2,0.72255]
[1749693046566,5.36720588,2767.5,2767.4,0.7225]
[1749693046868,2.15940588,2767.7,2767.6,0.72245]
[1749693047072,0.6227,2767.8,2767.7,0.72242]
[1749693048274,2.02915565,2767.8,2767.7,0.72242]
[1749693050275,0.72242,2767.7,2767.5,0.72246]
[1749693050579,1.40645565,2767.6,2767.5,17.79546]
[1749693057682,2.64095565,2767.6,2767.5,17.79546]
[1749693058783,1.40645565,2767.6,2767.5,17.79546]
[1749693059174,2.12890565,2767.6,2767.5,17.79546]
[1749693059376,1.40645565,2767.6,2767.5,17.79546]
[1749693060281,1.40645565,2767.6,2767.4,5.31149]
[1749693060479,0.72246,2767.6,2767.5,17.78648]
[1749693060778,2.12333355,2767.6,2767.5,17.78647]
[1749693061284,2.12333355,2767.6,2767.5,17.064]
[1749693061679,1.40088355,2767.6,2767.5,17.78648]
[1749693062482,2.62081,2767.8,2767.7,0.72242]
[1749693062483,0.6227,2767.8,2767.7,0.72242]
[1749693062679,2.02435262,2767.8,2767.7,0.72242]
[1749693063078,1.40165262,2767.8,2767.7,0.72242]
[1749693063379,0.6499,2768.3,2768.2,0.72229]
[1749693063581,2.05202022,2768.3,2768.2,0.72229]
[1749693063881,1.40212022,2768.3,2768.2,0.72229]
[1749693064075,1.40212022,2768.4,2768.0,18.3036]
[1749693064280,1.40212022,2768.3,2768.2,0.72229]
[1749693064583,0.72229,2768.2,2768.1,0.72231]
[1749693064784,1.40212022,2768.2,2768.1,0.72231]
[1749693065082,0.72228,2768.3,2768.2,0.72229]
[1749693065279,2.12483986,2768.4,2768.2,0.72229]
[1749693065483,2.12485986,2768.3,2768.1,0.72232]
[1749693065681,1.40257986,2768.2,2768.1,0.72232]
[1749693067689,1.40257986,2768.2,2768.0,18.3036]
[1749693067890,1.40257986,2768.1,2768.0,19.02593]
[1749693068489,1.40257986,2768.1,2768.0,20.30683]
[1749693068689,2.12489986,2768.1,2768.0,20.30683]
[1749693068890,0.72234,2768.0,2767.9,4.577]
[1749693069188,0.72251,2767.4,2767.3,0.72253]
[1749693069381,1.40257986,2767.4,2767.3,17.056]
[1749693069687,2.12507986,2767.4,2767.3,17.77853]
[1749693069989,2.12507986,2767.4,2767.2,4.58242103]
[1749693070187,1.40257986,2767.3,2767.2,0.00542103]
[1749693070387,1.40257986,2767.3,2767.2,0.72797103]
[1749693070787,1.40257986,2767.3,2767.2,1.97407103]
[1749693071585,1.40257986,2767.3,2767.2,17.05942103]
[1749693071782,2.12510986,2767.3,2767.2,17.05942103]
[1749693073386,2.12510986,2767.3,2767.2,0.00542103]
[1749693073589,2.12510986,2767.3,2767.2,17.05842103]
[1749693073889,1.40257986,2767.3,2767.2,17.78097103]
[1749693074688,2.12510986,2767.3,2767.2,17.05842103]
[1749693075192,2.12510986,2767.3,2767.2,0.72797103]
[1749693075193,1.40257986,2767.3,2767.2,0.72797103]
[1749693075393,2.12510986,2767.3,2767.2,0.72797103]
[1749693075590,2.12510986,2767.3,2767.2,17.77997103]
[1749693075788,1.40257986,2767.3,2767.2,17.77997103]
[1749693077096,1.40257986,2767.3,2767.2,17.78097103]
[1749693077396,2.12510986,2767.3,2767.2,17.78097103]
[1749693077689,2.12510986,2767.3,2767.2,0.00542103]
[1749693078090,3.32990986,2767.3,2767.2,0.00542103]
[1749693078288,0.72266,2766.8,2766.7,4.52107]
[1749693078588,1.40257986,2766.8,2766.7,17.77468]
[1749693078793,1.40257986,2766.8,2766.7,19.70888]
[1749693078983,8.74496836,2767.5,2766.9,0.72263]
[1749693078984,1.40257986,2767.0,2766.9,0.72263]